bitfinex/quotes_ETHUSD_20250909
["timestamp","ask_amount","ask_price","bid_price","bid_amount"]
[1757461137567,0.4285,4309.2,4309.1,0.116]
[1757461137768,4.5774,4309.2,4309.1,0.116]
[1757461140085,7.36191635,4309.2,4309.1,0.116]
[1757461140452,6.18764268,4309.2,4308.8,0.027]
[1757461140652,2.32072406,4309.0,4308.8,0.027]
[1757461140889,6.18277792,4308.9,4308.8,0.027]
[1757461141048,7.36607792,4308.9,4308.8,0.027]
[1757461142416,5.0453,4308.9,4308.8,0.027]
[1757461142589,0.7194,4308.9,4308.8,0.027]
[1757461142771,3.862,4308.9,4308.8,0.027]
[1757461142976,6.94247792,4308.9,4308.8,0.027]
[1757461145301,8.20613287,4308.9,4308.8,0.027]
[1757461145465,8.32213287,4308.9,4308.8,0.027]
[1757461149395,7.86173287,4308.9,4308.8,0.027]
[1757461149603,8.32213287,4308.9,4308.8,0.027]
[1757461152813,7.86173287,4308.9,4308.8,0.027]
[1757461153024,4.07631902,4308.9,4308.8,0.7836]
[1757461153221,6.39709694,4308.9,4308.8,0.7836]
[1757461153723,6.39709694,4308.9,4308.8,0.3154]
[1757461153922,6.39709694,4308.9,4308.8,0.027]
[1757461157299,6.39709694,4308.9,4308.8,0.3154]
[1757461157721,6.39709694,4308.9,4308.8,0.7836]
[1757461157722,4.07631902,4308.9,4308.8,0.7836]
[1757461157918,2.43665894,4309.2,4308.8,0.7836]
[1757461158192,3.86,4309.1,4308.8,0.7836]
[1757461158394,6.39716026,4309.1,4308.8,0.7836]
[1757461158693,3.86,4309.0,4308.9,0.4682]
[1757461158898,3.86,4309.0,4308.9,1.18324482]
[1757461158899,3.861,4309.0,4308.9,1.18324482]
[1757461159135,3.861,4309.0,4308.9,0.8726]
[1757461163060,3.861,4309.0,4308.9,0.4044]
[1757461163229,3.861,4309.0,4308.9,0.116]
[1757461166036,3.861,4309.0,4308.9,0.8726]
[1757461169058,3.861,4309.0,4308.9,0.116]
[1757461169257,4.3337,4309.0,4308.9,0.116]
[1757461169645,3.861,4309.0,4308.9,0.116]
[1757461169959,4.6207,4309.0,4308.9,0.116]
[1757461170584,6.94142406,4309.0,4308.9,0.116]
[1757461172137,4.58858867,4308.9,4308.8,0.027]
[1757461173556,7.71842591,4308.9,4308.8,0.027]
[1757461173741,9.21668003,4308.9,4308.8,0.027]
[1757461173942,9.83700123,4308.9,4308.8,0.027]
[1757461174458,9.21668003,4308.9,4308.8,0.027]
[1757461178458,9.83700123,4308.9,4308.8,0.027]
[1757461179756,9.21668003,4308.9,4308.8,0.027]
[1757461184492,10.00868003,4308.9,4308.8,1e-08]
[1757461186382,16.26750073,4308.9,4308.8,1e-08]
[1757461187574,10.00868003,4308.9,4308.8,1e-08]
[1757461188409,10.63007118,4308.9,4308.8,1e-08]
[1757461188605,10.00868003,4308.9,4308.8,1e-08]
[1757461189104,10.63006695,4308.9,4308.8,1e-08]
[1757461189309,10.0068774,4308.9,4308.8,1e-08]
[1757461189519,10.6282253,4308.9,4308.8,1e-08]
[1757461189825,10.1678253,4308.9,4308.8,1e-08]
[1757461190001,12.6124774,4308.9,4308.8,1e-08]
[1757461191327,7.9947774,4308.9,4308.8,1e-08]
[1757461191633,7.9947774,4308.9,4308.8,0.75210001]
[1757461191634,6.61029188,4308.9,4308.8,0.75210001]
[1757461191792,6.3945349,4308.9,4308.8,0.75210001]
[1757461191987,6.3945349,4308.9,4308.8,0.46150001]
[1757461192187,10.38256416,4308.9,4308.8,1e-08]
[1757461192426,12.87366601,4308.9,4308.8,1e-08]
[1757461194126,13.00321277,4308.9,4308.8,1e-08]
[1757461194328,13.00329479,4308.9,4308.8,1e-08]
[1757461195506,12.23109479,4308.9,4308.8,0.75210001]
[1757461195825,12.23311302,4308.9,4308.8,0.75210001]
[1757461196028,12.10354803,4308.9,4308.8,0.75210001]
[1757461196200,12.23314655,4308.9,4308.8,0.75210001]
[1757461196600,12.23314655,4308.9,4308.8,0.29060001]
[1757461196804,12.23314655,4308.9,4308.8,1e-08]
[1757461200336,13.00534655,4308.9,4308.8,1e-08]
[1757461200526,13.62669445,4308.9,4308.8,1e-08]
[1757461202143,12.85449445,4308.9,4308.8,0.29350001]
[1757461202342,10.23729254,4308.9,4308.8,0.78800001]
[1757461202505,10.35329254,4308.9,4308.8,0.78800001]
[1757461203504,10.35429254,4308.9,4308.8,0.78800001]
[1757461206840,10.13853556,4308.9,4308.8,0.78800001]
[1757461207014,1.17622608,4308.9,4308.8,0.78800001]
[1757461207214,0.001,4308.9,4308.8,1.04350001]
[1757461207429,3.859,4308.9,4308.8,1.15965001]
[1757461207723,3.859,4308.9,4308.8,3.59648179]
[1757461208146,3.859,4308.9,4308.8,1.27565001]
[1757461214261,3.859,4308.9,4308.8,1.02015001]
[1757461214922,3.859,4308.9,4308.8,3.59648179]
[1757461215426,3.858,4308.9,4308.8,3.59648179]
[1757461217269,3.858,4308.9,4308.8,1.02015001]
[1757461217446,0.001,4308.9,4308.8,1.02015001]
[1757461217633,3.858,4308.9,4308.8,1.02015001]
[1757461218357,3.858,4308.9,4308.8,3.34098179]
[1757461227024,0.001,4308.9,4308.8,3.59648179]
[1757461227223,3.855,4308.9,4308.8,3.59648179]
[1757461228725,0.001,4308.9,4308.8,6.59648179]
[1757461230532,0.001,4308.9,4308.8,7.38848179]
[1757461238759,0.001,4308.9,4308.8,7.13298179]
[1757461244194,0.001,4308.9,4308.8,10.98598179]
[1757461248485,0.001,4308.9,4308.8,7.13298179]
[1757461248687,0.001,4308.9,4308.8,10.98598179]
[1757461253426,1.782,4309.4,4309.3,3.1125625]
[1757461253427,0.001,4309.4,4309.3,3.1125625]
[1757461253641,0.001,4309.4,4309.3,10.77816812]
[1757461253793,0.001,4309.4,4309.3,10.7549625]
[1757461253993,0.001,4309.4,4309.3,10.8709625]
[1757461260809,0.001,4309.4,4309.3,11.1264625]
[1757461260989,0.001,4309.4,4309.3,12.471172]
[1757461261190,0.026,4309.8,4309.7,3.11234712]
[1757461261391,0.026,4309.8,4309.7,9.98855059]
[1757461261620,0.026,4309.8,4309.7,10.87074712]
[1757461266551,0.026,4309.8,4309.7,10.55934712]
[1757461266727,0.026,4309.8,4309.7,11.14005891]
[1757461267055,0.7985,4309.8,4309.7,6.80905891]
[1757461267355,0.7985,4309.8,4309.7,10.66105891]
[1757461267670,0.026,4309.8,4309.7,10.66105891]
[1757461268239,0.7985,4309.8,4309.7,10.66105891]
[1757461270437,0.4818,4309.8,4309.7,10.66105891]
[1757461270636,0.4818,4309.8,4309.7,6.80905891]
[1757461270837,0.4818,4309.8,4309.7,10.66105891]
[1757461271755,0.026,4309.8,4309.7,10.66105891]
[1757461272061,0.7985,4309.8,4309.7,10.66105891]
[1757461272274,0.026,4309.8,4309.7,10.66105891]
[1757461272967,0.4818,4309.8,4309.7,10.66105891]
[1757461273333,0.026,4309.8,4309.7,10.66105891]
[1757461279567,0.7985,4309.8,4309.7,10.66105891]
[1757461280435,0.4818,4309.8,4309.7,10.66105891]
[1757461280638,0.026,4309.8,4309.7,10.66105891]
[1757461283977,0.7985,4309.8,4309.7,10.66105891]
[1757461284476,0.4818,4309.8,4309.7,10.66105891]
[1757461284680,0.026,4309.8,4309.7,10.66105891]
[1757461286286,0.4818,4309.8,4309.7,10.66105891]
[1757461287168,0.026,4309.8,4309.7,10.66105891]
[1757461287868,1e-08,4309.8,4309.7,11.43035891]
[1757461289281,1e-08,4309.8,4309.7,10.66105891]
[1757461289485,0.77250001,4309.8,4309.7,10.66105891]
[1757461289886,0.31670001,4309.8,4309.7,6.80905891]
[1757461290097,1.22260001,4309.8,4309.7,5.43634712]
[1757461290787,1.22360001,4309.8,4309.7,5.43634712]
[1757461303038,1.22360001,4309.8,4309.7,0.116]
[1757461303331,1.22360001,4309.8,4309.7,2.43634712]
[1757461304797,0.00100001,4309.8,4309.7,2.43634712]
[1757461305057,0.00100001,4309.8,4309.7,7.07368715]
[1757461306333,0.00100001,4309.8,4309.7,6.24844712]
[1757461307843,0.00100001,4309.8,4309.7,5.43634712]
[1757461308901,0.46480001,4309.8,4309.7,5.43634712]
[1757461310761,0.30820001,4309.8,4309.7,5.43634712]
[1757461310960,5.10740001,4309.8,4309.7,0.116]
[1757461311161,5.36906001,4309.8,4309.7,0.116]
[1757461311371,6.06549623,4309.8,4309.7,0.116]
[1757461311524,5.36906001,4309.8,4309.7,0.116]
[1757461313505,6.06549623,4309.8,4309.7,0.116]
[1757461315937,6.06549623,4309.8,4309.6,0.002]
[1757461316266,0.78884962,4309.7,4309.6,0.002]
[1757461316770,1.09604962,4309.7,4309.6,0.002]
[1757461316965,2.04424962,4309.7,4309.6,0.002]
[1757461319960,4.36459674,4309.7,4309.6,0.002]
[1757461320194,4.79739579,4309.7,4309.6,0.002]
[1757461320422,5.29597412,4309.7,4309.6,0.002]
[1757461320614,8.76439579,4309.7,4309.6,0.002]
[1757461320996,9.26297144,4309.7,4309.6,0.002]
[1757461321300,8.76439068,4309.7,4309.6,0.002]
[1757461323522,8.54799371,4309.7,4309.6,0.002]
[1757461325007,6.01124962,4309.7,4309.6,0.002]
[1757461325306,7.54274712,4309.7,4309.6,0.002]
[1757461325481,3.69174712,4309.7,4309.6,0.002]
[1757461325805,6.94334712,4309.7,4309.6,0.002]
[1757461326112,7.39364712,4309.7,4309.6,0.002]
[1757461326673,7.50964712,4309.7,4309.6,0.002]
[1757461326900,8.71049046,4309.7,4309.6,0.002]
[1757461327667,14.95976721,4309.7,4309.6,0.002]
[1757461327872,8.92646245,4309.7,4309.6,0.002]
[1757461336890,15.1757392,4309.7,4309.6,0.002]
[1757461337208,8.92646245,4309.7,4309.6,0.002]
[1757461338238,9.14245754,4309.7,4309.6,0.002]
[1757461339346,9.14249187,4309.7,4309.6,0.002]
[1757461341450,9.64047971,4309.7,4309.6,0.002]
[1757461346212,5.33817971,4309.7,4309.6,0.002]
[1757461346419,8.69219187,4309.7,4309.6,0.002]
[1757461347035,9.19017971,4309.7,4309.6,0.002]
[1757461347918,8.72637971,4309.7,4309.6,0.002]
[1757461348119,8.22839187,4309.7,4309.6,0.002]
[1757461348453,8.35828607,4309.7,4309.6,0.002]
[1757461348817,4.94028607,4309.7,4309.6,0.002]
[1757461349018,8.79228607,4309.7,4309.6,0.002]
[1757461349420,9.29027391,4309.7,4309.6,0.002]
[1757461352062,9.77567391,4309.7,4309.6,0.002]
[1757461353834,9.29027391,4309.7,4309.6,0.002]
[1757461354047,8.54907391,4309.7,4309.6,0.002]
[1757461354357,8.05108607,4309.7,4309.6,0.002]
[1757461354551,8.78538607,4309.7,4309.6,0.002]
[1757461354722,9.28337391,4309.7,4309.6,0.002]
[1757461358569,8.54907391,4309.7,4309.6,0.002]
[1757461359847,7.23223057,4309.7,4309.6,0.7761]
[1757461360783,7.96653057,4309.7,4309.6,0.002]
[1757461363645,0.49898785,4309.8,4309.6,0.7761]
[1757461364004,3.264,4310.3,4310.2,2.32007795]
[1757461364203,3.264,4310.3,4310.2,3.50848575]
[1757461364696,3.264,4310.3,4310.2,6.50848575]
[1757461365760,0.001,4310.3,4310.2,6.50848575]
[1757461365967,2.395,4310.3,4310.2,6.50848575]
[1757461367250,0.001,4310.3,4310.2,6.50848575]
[1757461367575,0.001,4310.3,4310.2,7.30048575]
[1757461374107,0.001,4310.3,4310.2,7.41648575]
[1757461374501,0.001,4310.3,4310.2,7.50930146]
[1757461377440,0.001,4310.3,4310.2,7.03850146]
[1757461377624,0.001,4310.3,4310.2,11.36430146]
[1757461379615,0.001,4310.3,4310.2,7.50930146]
[1757461381019,0.001,4310.3,4310.2,7.03850146]
[1757461389927,0.001,4310.3,4310.2,10.40590146]
[1757461392146,0.001,4310.3,4310.2,6.55290146]
[1757461392354,0.001,4310.3,4310.2,7.01600146]
[1757461393918,0.001,4310.4,4310.2,7.01600146]
[1757461393919,0.001,4310.4,4310.3,6.11202412]
[1757461394218,0.001,4310.7,4310.6,3.11186266]
[1757461394526,0.001,4310.7,4310.6,6.98806128]
[1757461394743,0.001,4310.7,4310.6,7.54316266]
[1757461395153,0.001,4310.7,4310.6,7.6359717]
[1757461396518,1e-08,4310.8,4310.7,6.11180884]
[1757461396723,1e-08,4310.8,4310.7,7.81059207]
[1757461397768,1e-08,4310.9,4310.8,6.11175503]
[1757461397937,1e-08,4310.9,4310.8,10.42885503]
[1757461399427,1e-08,4310.9,4310.8,6.11175503]
[1757461399779,1e-08,4310.9,4310.8,9.96475503]
[1757461399932,1e-08,4310.9,4310.8,11.33758064]
[1757461405461,1e-08,4310.9,4310.8,7.48458064]
[1757461405670,0.45500001,4310.9,4310.8,5.31975503]
[1757461405855,1e-08,4310.9,4310.8,2.31975503]
[1757461406793,1e-08,4310.9,4310.8,10.45005258]
[1757461406968,1e-08,4310.9,4310.8,10.42685503]
[1757461409051,0.001,4311.2,4311.1,0.792]
[1757461409283,0.001,4311.6,4311.4,0.792]
[1757461409492,0.001,4311.6,4311.5,3.13457218]
[1757461409701,0.001,4311.6,4311.5,3.24977218]
[1757461410362,0.001,4311.6,4311.5,3.2265784]
[1757461410569,0.001,4311.6,4311.5,4.98507092]
[1757461412877,0.4578,4312.7,4312.2,2.3189948]
[1757461413072,0.4578,4312.7,4312.5,2.31884057]
[1757461413269,0.04,4312.9,4312.7,2.31873304]
[1757461419468,0.04,4312.9,4312.7,3.08966626]
[1757461420259,0.04,4312.9,4312.7,6.08966626]
[1757461421773,0.04,4312.9,4312.7,6.88166626]
[1757461423057,0.04,4312.9,4312.7,7.48246626]
[1757461423863,0.02201266,4312.8,4312.7,7.48246626]
[1757461427039,0.02201266,4312.8,4312.7,6.99686626]
[1757461428165,0.47981266,4312.8,4312.7,10.05486626]
[1757461428872,0.02201266,4312.8,4312.7,10.05486626]
[1757461430166,0.02201266,4312.8,4312.7,6.20486626]
[1757461435573,0.02301266,4312.8,4312.7,6.20486626]
[1757461438078,0.02301266,4312.8,4312.7,6.99686626]
[1757461438366,0.02301266,4312.8,4312.7,7.48246626]
[1757461438769,0.02301266,4312.8,4312.7,6.99686626]
[1757461439379,0.02301266,4312.8,4312.7,7.48246626]
[1757461441096,0.02301266,4312.8,4312.7,4.77416626]
[1757461441693,0.02301266,4312.8,4312.7,4.95646626]
[1757461442496,0.02301266,4312.8,4312.7,7.95646626]
[1757461442684,0.02301266,4312.8,4312.7,7.77416626]
[1757461442900,0.02301266,4312.8,4312.7,7.95646626]
[1757461443076,0.02301266,4312.8,4312.7,7.77416626]
[1757461445801,0.02301266,4312.8,4312.7,7.95646626]
[1757461446004,0.001,4313.3,4313.2,6.11046424]
[1757461446191,0.001,4313.3,4313.2,10.88056421]
[1757461446375,0.001,4313.3,4313.2,11.74906421]
[1757461449385,0.001,4313.3,4313.2,11.45756421]
[1757461449581,0.001,4313.3,4313.2,10.99576421]
[1757461450029,0.001,4313.3,4313.2,11.28726421]
[1757461450730,0.001,4313.3,4313.2,10.99576421]
[1757461452381,0.001,4313.3,4313.2,11.28726421]
[1757461452731,0.001,4313.3,4313.2,11.74906421]
[1757461452885,0.001,4313.3,4313.2,10.99576421]
[1757461453518,0.2969,4313.3,4313.2,10.99576421]
[1757461453729,0.7615,4313.3,4313.2,10.99576421]
[1757461455615,0.001,4313.3,4313.2,11.28726421]
[1757461455801,0.001,4313.3,4313.2,11.74906421]
[1757461460449,0.001,4313.3,4313.2,11.93136421]
[1757461463642,0.001,4313.3,4313.2,11.74906421]
[1757461470235,0.04,4313.9,4313.8,0.792]
[1757461470462,0.04,4313.9,4313.8,11.76032318]
[1757461470669,1e-08,4313.9,4313.8,11.73714177]
[1757461471977,0.9244,4315.0,4314.7,2.31765823]
[1757461472146,0.9244,4315.0,4314.7,9.39842405]
[1757461472147,0.492,4314.8,4314.7,9.39842405]
[1757461472348,0.806,4314.8,4314.7,9.39842405]
[1757461472853,0.806,4314.8,4314.7,10.19042405]
[1757461473271,1.2634,4314.8,4314.7,10.19042405]
[1757461475306,1.2644,4314.8,4314.7,10.19042405]
[1757461476538,1.2644,4314.8,4314.7,10.18942405]
[1757461478508,0.807,4314.8,4314.7,10.18942405]
[1757461480525,0.807,4314.8,4314.7,10.30462405]
[1757461486818,0.807,4314.8,4314.7,6.45662405]
[1757461487025,1.2644,4314.8,4314.7,5.43285823]
[1757461498547,0.807,4314.8,4314.7,5.43285823]
[1757461498845,0.026,4314.8,4314.7,5.72455823]
[1757461499044,0.026,4314.8,4314.7,6.21635823]
[1757461499225,0.026,4314.8,4314.7,7.45446568]
[1757461499736,0.026,4314.8,4314.7,11.30146568]
[1757461501683,0.026,4314.8,4314.7,12.09346568]
[1757461501884,0.026,4314.8,4314.7,12.27576568]
[1757461502096,0.026,4314.8,4314.7,12.74276568]
[1757461502842,0.026,4314.8,4314.7,12.56046568]
[1757461503158,0.7761,4314.8,4314.7,11.77796568]
[1757461503392,0.026,4314.8,4314.7,11.77796568]
[1757461503904,0.026,4314.8,4314.7,7.92996568]
[1757461504046,0.026,4314.8,4314.7,11.77796568]
[1757461504245,0.4792,4314.8,4314.7,11.77796568]
[1757461505458,0.7761,4314.8,4314.7,10.98596568]
[1757461506084,0.026,4314.8,4314.7,10.98596568]
[1757461507494,0.4792,4314.8,4314.7,10.98596568]
[1757461507834,0.7761,4314.8,4314.7,7.13796568]
[1757461508107,1.2415,4314.8,4314.7,5.89985823]
[1757461508410,0.7761,4314.8,4314.7,5.43285823]
[1757461509934,1.2415,4314.8,4314.7,5.43285823]
[1757461510236,1.2415,4314.8,4314.7,3.1152]
[1757461510593,1.2415,4314.8,4314.7,5.43285823]
[1757461510818,1.2415,4314.8,4314.7,3.1152]
[1757461511336,1.2415,4314.8,4314.7,0.1152]
[1757461513528,2.31768205,4314.7,4313.9,2.31807214]
[1757461513734,0.2969,4314.0,4313.9,2.31807214]
[1757461514038,0.7501,4314.0,4313.9,2.31807214]
[1757461518450,0.7501,4314.0,4313.8,0.002]
[1757461518773,0.4532,4313.9,4313.8,0.002]
[1757461518979,0.4532,4313.9,4313.8,2.32010863]
[1757461519185,0.7501,4313.9,4313.8,2.32010863]
[1757461520390,0.7501,4313.9,4313.8,3.46864347]
[1757461520942,0.4532,4313.9,4313.8,3.46864347]
[1757461521382,0.026,4314.8,4313.8,1.89743484]
[1757461521568,0.026,4314.8,4314.7,2.31765823]
[1757461522176,0.026,4314.8,4314.7,3.06455823]
[1757461522476,0.026,4314.8,4314.7,3.51775823]
[1757461522676,0.026,4314.8,4314.7,2.77085823]
[1757461522977,0.026,4314.8,4314.7,3.96441705]
[1757461523440,0.026,4314.8,4314.7,4.07961705]
[1757461528366,0.7761,4314.8,4314.7,4.07961705]
[1757461528566,0.7761,4314.8,4314.7,7.92761705]
[1757461532109,0.7761,4314.8,4314.7,7.47441705]
[1757461532414,0.4792,4314.8,4314.7,7.47441705]
[1757461533225,0.026,4314.8,4314.7,8.21911705]
[1757461533973,0.026,4314.8,4314.7,4.37111705]
[1757461534177,0.026,4314.8,4314.7,8.21811705]
[1757461534375,0.026,4314.8,4314.7,8.10291705]
[1757461535929,0.7783,4314.8,4314.7,7.35821705]
[1757461536300,1.2331,4314.8,4314.7,2.31765823]
[1757461537018,0.7783,4314.8,4314.2,3.0]
[1757461537175,0.921,4314.7,4314.6,2.3177017]
[1757461537379,1.2071,4314.7,4314.6,2.3177017]
[1757461539700,1.33441,4314.7,4313.4,0.794]
[1757461539893,1.33441,4314.7,4314.0,2.31799106]
[1757461540094,0.921,4314.6,4314.0,2.31799106]
[1757461540622,0.2861,4314.1,4313.9,2.31808696]
[1757461540920,0.921,4314.0,4313.9,2.31808696]
[1757461541124,1.2071,4314.0,4313.9,2.31808696]
[1757461541631,0.7523,4314.0,4313.9,2.31808696]
[1757461542794,0.4922,4314.8,4314.0,3.0]
[1757461543060,0.4662,4314.7,4314.6,2.31771195]
[1757461543331,0.7523,4314.7,4314.6,2.31771195]
[1757461543825,0.7523,4314.7,4314.5,2.31776265]
[1757461544128,0.4662,4314.6,4314.5,2.31776265]
[1757461544336,0.7523,4314.6,4314.5,2.31776265]
[1757461544540,0.7523,4314.6,4314.5,2.43296265]
[1757461546850,0.7523,4314.6,4314.5,0.1152]
[1757461551720,0.7523,4314.6,4314.5,2.43296567]
[1757461552175,0.2861,4314.6,4314.5,0.1152]
[1757461552464,0.7523,4314.6,4314.5,0.1152]
[1757461553872,1.2071,4314.6,4314.5,0.1152]
[1757461554071,1.71941,4314.6,4314.5,0.1152]
[1757461554977,4.03712195,4314.6,4313.8,0.002]
[1757461555179,4.03712195,4314.6,4314.2,0.1152]
[1757461555399,4.03712195,4314.6,4313.8,0.002]
[1757461555400,1.71941,4314.6,4313.8,0.002]
[1757461555553,0.1152,4314.4,4313.8,0.002]
[1757461555868,2.43302522,4314.4,4313.8,0.002]
[1757461556072,0.2861,4313.9,4313.8,0.002]
[1757461556388,4.1381,4313.9,4313.8,0.002]
[1757461556550,4.6043,4313.9,4313.8,0.002]
[1757461557748,0.2861,4313.9,4313.8,2.32014177]
[1757461557950,1.779,4314.1,4314.0,2.3180343]
[1757461558150,0.4922,4314.8,4314.3,2.31783578]
[1757461558350,3.728,4314.7,4314.4,2.31777748]
[1757461558580,4.1942,4314.7,4314.4,2.31777748]
[1757461558801,3.728,4314.7,4314.6,0.1152]
[1757461559102,4.0141,4314.7,4314.6,0.1152]
[1757461559477,4.4803,4314.7,4314.6,0.1152]
[1757461560567,4.4803,4314.7,4314.6,2.43291195]
[1757461560770,4.4803,4314.7,4314.6,0.1152]
[1757461561014,4.4803,4314.7,4314.6,2.43291195]
[1757461562073,4.4803,4314.7,4314.6,0.1152]
[1757461563520,4.6063,4314.7,4314.6,0.1152]
[1757461563719,5.0785,4314.7,4314.6,0.1152]
[1757461565423,3.854,4314.7,4314.6,2.43291195]
[1757461565572,4.308,4314.7,4314.6,0.1152]
[1757461566273,4.309,4314.7,4314.6,0.1152]
[1757461567479,4.6045,4314.7,4314.6,0.1152]
[1757461568627,4.6045,4314.7,4314.6,2.43291195]
[1757461568797,0.001,4314.7,4314.6,3.17931195]
[1757461569000,3.854,4314.7,4314.6,3.17931195]
[1757461569746,0.001,4314.7,4314.6,6.72902345]
[1757461569981,3.854,4314.7,4314.6,6.72902345]
[1757461570117,0.001,4314.7,4314.6,6.72902345]
[1757461574919,0.001,4314.7,4314.6,7.70332345]
[1757461575136,0.001,4314.7,4314.6,7.52102345]
[1757461578936,0.001,4314.7,4314.6,5.98262345]
[1757461579135,0.455,4314.7,4314.6,5.98262345]
[1757461580760,0.001,4314.7,4314.6,5.98262345]
[1757461581065,0.2965,4314.7,4314.6,5.98262345]
[1757461581244,0.001,4314.7,4314.6,5.98262345]
[1757461582250,0.455,4314.7,4314.6,5.98262345]
[1757461582874,0.7505,4314.7,4314.6,5.43291195]
[1757461584081,1.2227,4314.7,4314.6,3.1152]
[1757461585614,1.2227,4314.7,4314.0,2.31800603]
[1757461585762,1.2227,4314.7,4313.8,0.002]
[1757461585763,0.9262,4314.6,4313.8,0.002]
[1757461585957,3.853,4314.5,4314.0,2.31803356]
[1757461586211,0.2955,4314.1,4313.9,2.31808722]
[1757461586596,0.454,4314.0,4313.9,2.31808722]
[1757461586764,0.7495,4314.0,4313.9,2.31808722]
[1757461588979,0.7495,4314.0,4313.9,2.31808804]
[1757461591838,0.7495,4314.0,4313.8,2.32012756]
[1757461592137,4.7821,4313.9,4313.8,0.002]
[1757461592284,7.60794804,4313.9,4313.8,0.002]
[1757461592490,5.60146,4313.9,4313.4,0.002]
[1757461592805,2.31825941,4313.6,4313.4,0.002]
[1757461593024,2.318303,4313.5,4313.4,0.002]
[1757461593336,3.559003,4313.5,4313.4,0.002]
[1757461593534,4.14672369,4313.5,4313.4,0.002]
[1757461593716,1.82842069,4313.5,4313.4,0.002]
[1757461593918,4.14672369,4313.5,4313.4,0.002]
[1757461594929,4.36076,4313.9,4313.4,0.002]
[1757461594930,0.96626,4313.9,4313.4,0.002]
[1757461595142,1.779,4314.1,4313.4,0.2969]
[1757461595321,3.854,4314.0,4313.8,2.31810534]
[1757461595496,3.854,4314.0,4313.8,2.43330534]
[1757461595886,3.854,4314.0,4313.9,2.31808804]
[1757461596088,1.779,4314.1,4314.0,2.3180343]
[1757461596326,4.805,4314.1,4314.0,3.0839343]
[1757461597921,4.805,4314.1,4313.9,0.1152]
[1757461598509,4.805,4314.1,4313.9,2.43326176]
[1757461599556,4.805,4314.1,4314.0,2.3180343]
[1757461600169,4.805,4314.1,4313.9,2.43327141]
[1757461600312,4.805,4314.1,4314.0,2.3180343]
[1757461601453,4.805,4314.1,4313.9,2.43328417]
[1757461601749,0.7822,4314.0,4313.9,0.1152]
[1757461601949,1.79942,4314.0,4313.4,2.32034731]
[1757461602164,0.4706,4313.9,4313.7,0.1152]
[1757461602617,0.3116,4313.8,4313.7,0.1152]
[1757461603021,0.7822,4313.8,4313.7,0.1152]
[1757461604137,1.396792,4313.8,4313.4,0.002]
[1757461604341,3.857,4313.7,4313.4,0.002]
[1757461604584,4.3276,4313.7,4313.4,0.002]
[1757461604896,0.3116,4313.5,4313.4,0.002]
[1757461605482,0.7822,4313.5,4313.4,0.002]
[1757461608579,3.857,4313.7,4313.4,2.32035674]
[1757461608777,4.3276,4313.7,4313.4,2.32035674]
[1757461609275,4.3276,4313.7,4313.4,0.002]
[1757461610180,3.857,4313.7,4313.4,0.002]
[1757461610474,0.4706,4313.6,4313.4,0.002]
[1757461612478,0.4706,4313.6,4313.4,2.3203546]
[1757461612880,0.4706,4313.6,4313.4,0.002]
[1757461613083,3.857,4313.7,4313.4,0.002]
[1757461613280,0.4706,4313.5,4313.4,0.002]
[1757461614274,0.4706,4313.5,4313.4,0.1172]
[1757461615518,0.7822,4313.5,4313.4,0.1172]
[1757461616019,0.7822,4313.5,4313.4,2.43555674]
[1757461616604,0.7822,4313.5,4313.4,0.1172]
[1757461620417,1.2407,4313.5,4313.4,0.1172]
[1757461620619,1.52378539,4313.5,4313.4,0.1172]
[1757461620928,3.853,4313.5,4313.4,0.1172]
[1757461621423,3.853,4313.5,4313.4,2.43553782]
[1757461621937,4.3203,4313.5,4313.4,0.1172]
[1757461622219,4.3203,4313.5,4313.4,2.43555674]
[1757461622419,3.853,4313.5,4313.4,2.43555674]
[1757461622592,4.3203,4313.5,4313.4,2.43555674]
[1757461622921,4.6071,4313.5,4313.4,2.43555674]
[1757461624224,3.853,4313.5,4313.4,2.43555674]
[1757461624426,3.852,4313.5,4313.4,0.1172]
[1757461624622,3.852,4313.5,4313.4,5.91082691]
[1757461624791,3.852,4313.5,4313.4,5.43552691]
[1757461626791,4.6061,4313.5,4313.4,5.43552691]
[1757461628238,4.3193,4313.5,4313.4,5.43552691]
[1757461629035,3.852,4313.5,4313.4,6.20572691]
[1757461629638,3.852,4313.5,4313.4,5.91082691]
[1757461629840,3.852,4313.5,4313.4,5.43552691]
[1757461633767,0.7541,4313.5,4313.4,5.43552691]
[1757461640077,3.85,4313.6,4313.5,5.318303]
[1757461640779,4.6041,4313.6,4313.5,5.318303]
[1757461641809,4.6041,4313.6,4313.5,2.318303]
[1757461642676,0.7541,4313.6,4313.5,2.318303]
[1757461642883,4.6041,4313.6,4313.5,2.318303]
[1757461646714,4.6041,4313.6,4313.4,0.1172]
[1757461646715,5.51851,4313.6,4313.4,0.1172]
[1757461647018,0.9212,4313.5,4313.4,0.002]
[1757461647510,3.526303,4313.5,4313.4,0.002]
[1757461647821,4.54190515,4313.5,4313.4,0.002]
[1757461648825,2.22360215,4313.5,4313.4,0.002]
[1757461648966,6.07360215,4313.5,4313.4,0.002]
[1757461650213,8.39190515,4313.5,4313.4,0.002]
[1757461651071,6.07360215,4313.5,4313.4,0.002]
[1757461652371,2.22360215,4313.5,4313.4,0.002]
[1757461652568,6.07360215,4313.5,4313.4,0.002]
[1757461654091,8.60873589,4313.5,4313.4,0.002]
[1757461654275,9.1083378,4313.5,4313.4,0.002]
[1757461654474,9.20114425,4313.5,4313.4,0.002]
[1757461655774,9.99314425,4313.5,4313.4,0.002]
[1757461655998,9.99314425,4313.5,4313.0,0.002]
[1757461655999,2.318518,4313.1,4313.0,0.002]